lending/lending_fUSD_20250917
["ID","MTS","AMOUNT","RATE_DAILY","PERIOD"]
[385940661,1758139839780,-400.0,0.0002227,2]
[385940664,1758139839791,-400.0,0.0002227,2]
[385940666,1758139839802,-400.0,0.0002227,2]
[385940668,1758139839812,-340.35167337,0.0002227,2]
[385940670,1758139839822,-400.0,0.0002227,2]
[385940672,1758139839832,-73.6048486,0.0002227,2]
[385940675,1758139839852,-326.3951514,0.0002227,2]
[385940677,1758139839862,-242.45532017,0.0002227,2]
[385940679,1758139839875,-157.54467983,0.0002227,2]
[385940682,1758139839888,-400.0,0.0002227,2]
[385940683,1758139839898,-400.0,0.0002227,2]
[385940685,1758139839907,-400.0,0.0002227,2]
[385940688,1758139839917,-28.23670254,0.0002227,2]
[385940690,1758139839929,-371.76329746,0.0002227,2]
[385940692,1758139839939,-400.0,0.0002227,2]
[385940694,1758139839948,-400.0,0.0002227,2]
[385940696,1758139839958,-400.0,0.0002227,2]
[385940698,1758139839967,-400.0,0.0002227,2]
[385940700,1758139839976,-400.0,0.0002227,2]
[385940702,1758139839986,-400.0,0.0002227,2]
[385940704,1758139839997,-400.0,0.0002227,2]
[385940706,1758139840006,-400.0,0.0002227,2]
[385940708,1758139840016,-314.29486016,0.0002227,2]
[385941274,1758139845472,-85.70513984,0.0002227,2]
[385941276,1758139845482,-400.0,0.0002227,2]
[385941278,1758139845492,-400.0,0.0002227,2]
[385941280,1758139845502,-400.0,0.0002227,2]
[385941282,1758139845511,-400.0,0.0002227,2]
[385941284,1758139845521,-500.0,0.0002227,2]
[385941286,1758139845532,-400.0,0.0002227,2]
[385941288,1758139845542,-172.58093311,0.0002227,2]
[385941290,1758139845555,-227.41906689,0.0002227,2]
[385941292,1758139845564,-400.0,0.0002227,2]
[385941294,1758139845573,-400.0,0.0002227,2]
[385941296,1758139845583,-400.0,0.0002227,2]
[385941298,1758139845593,-400.0,0.0002227,2]
[385941300,1758139845603,-400.0,0.0002227,2]
[385941303,1758139845612,-400.0,0.0002227,2]
[385941305,1758139845622,-400.0,0.0002227,2]
[385941307,1758139845632,-405.93398814,0.0002227,2]
[385941309,1758139845642,-311.46388084,0.0002227,2]
[385941311,1758139845651,-400.0,0.0002227,2]
[385941313,1758139845661,-400.0,0.0002227,2]
[385941315,1758139845671,-400.0,0.0002227,2]
[385941317,1758139845681,-400.0,0.0002227,2]
[385941319,1758139845690,-400.0,0.0002227,2]
[385941321,1758139845705,-400.0,0.0002227,2]
[385941323,1758139845715,-400.0,0.0002227,2]
[385941326,1758139845725,-400.0,0.0002227,2]
[385941328,1758139845735,-400.0,0.0002227,2]
[385941330,1758139845745,-400.0,0.0002227,2]
[385941332,1758139845756,-400.0,0.0002227,2]
[385941334,1758139845767,-400.0,0.0002227,2]
[385941336,1758139845777,-400.0,0.0002227,2]
[385941338,1758139845788,-400.0,0.0002227,2]
[385941340,1758139845799,-400.0,0.0002227,2]
[385941342,1758139845811,-400.0,0.0002227,2]
[385941344,1758139845823,-400.0,0.0002227,2]
[385941346,1758139845833,-400.0,0.0002227,2]
[385941347,1758139845842,-400.0,0.0002227,2]
[385941348,1758139845852,-400.0,0.0002227,2]
[385941349,1758139845862,-400.0,0.0002227,2]
[385941350,1758139845872,-400.0,0.0002227,2]
[385941352,1758139845881,-400.0,0.0002227,2]
[385941353,1758139845892,-400.0,0.0002227,2]
[385941355,1758139845901,-400.0,0.0002227,2]
[385941357,1758139845911,-400.0,0.0002227,2]
[385941359,1758139845921,-400.0,0.0002227,2]
[385941361,1758139845931,-406.70598722,0.0002227,2]
[385941363,1758139845941,-400.0,0.0002227,2]
[385941365,1758139845951,-400.0,0.0002227,2]
[385941367,1758139845960,-400.0,0.0002227,2]
[385941368,1758139845970,-400.0,0.0002227,2]
[385941370,1758139845980,-400.0,0.0002227,2]
[385941371,1758139845989,-400.0,0.0002227,2]
[385941372,1758139845999,-400.0,0.0002227,2]
[385941373,1758139846009,-400.0,0.0002227,2]
[385941374,1758139846019,-400.0,0.0002227,2]
[385941375,1758139846028,-400.0,0.0002227,2]
[385941377,1758139846038,-400.0,0.0002227,2]
[385941379,1758139846047,-400.0,0.0002227,2]
[385941381,1758139846059,-400.0,0.0002227,2]
[385941383,1758139846068,-400.0,0.0002227,2]
[385941385,1758139846078,-400.0,0.0002227,2]
[385941387,1758139846087,-400.0,0.0002227,2]
[385941389,1758139846096,-400.0,0.0002227,2]
[385941391,1758139846106,-400.0,0.0002227,2]
[385941393,1758139846115,-400.0,0.0002227,2]
[385941396,1758139846125,-400.0,0.0002227,2]
[385941399,1758139846134,-400.0,0.0002227,2]
[385941401,1758139846143,-400.0,0.0002227,2]
[385941403,1758139846153,-468.6,0.0002227,2]
[385941405,1758139846163,-400.0,0.0002227,2]
[385941407,1758139846173,-400.0,0.0002227,2]
[385941409,1758139846183,-400.0,0.0002227,2]
[385941411,1758139846192,-400.0,0.0002227,2]
[385941413,1758139846202,-400.0,0.0002227,2]
[385941414,1758139846212,-406.18,0.0002227,2]
[385941416,1758139846222,-400.0,0.0002227,2]
[385941417,1758139846232,-400.0,0.0002227,2]
[385941419,1758139846242,-400.0,0.0002227,2]
[385941421,1758139846251,-400.0,0.0002227,2]
[385941423,1758139846260,-400.0,0.0002227,2]
[385941425,1758139846270,-400.0,0.0002227,2]
[385941427,1758139846279,-400.0,0.0002227,2]
[385941429,1758139846288,-400.0,0.0002227,2]
[385941431,1758139846298,-400.0,0.0002227,2]
[385941433,1758139846308,-400.0,0.0002227,2]
[385941434,1758139846318,-400.0,0.0002227,2]
[385941435,1758139846327,-400.0,0.0002227,2]
[385941436,1758139846337,-400.0,0.0002227,2]
[385941437,1758139846346,-400.0,0.0002227,2]
[385941438,1758139846355,-400.0,0.0002227,2]
[385941439,1758139846366,-400.0,0.0002227,2]
[385941440,1758139846375,-400.0,0.0002227,2]
[385941441,1758139846385,-400.0,0.0002227,2]
[385941442,1758139846395,-400.0,0.0002227,2]
[385941443,1758139846405,-400.0,0.0002227,2]
[385941444,1758139846414,-400.0,0.0002227,2]
[385941445,1758139846423,-400.0,0.0002227,2]
[385941446,1758139846433,-400.0,0.0002227,2]
[385941447,1758139846443,-400.0,0.0002227,2]
[385941448,1758139846453,-400.0,0.0002227,2]
[385941449,1758139846463,-2135.58,0.0002227,2]
[385941450,1758139846473,-164.39937715,0.0002227,2]
[385941451,1758139846482,-400.0,0.0002227,2]
[385941452,1758139846491,-400.0,0.0002227,2]
[385941453,1758139846501,-400.0,0.0002227,2]
[385941454,1758139846510,-400.0,0.0002227,2]
[385941455,1758139846520,-400.0,0.0002227,2]
[385941456,1758139846529,-400.0,0.0002227,2]
[385941457,1758139846538,-400.0,0.0002227,2]
[385941458,1758139846548,-400.0,0.0002227,2]
[385941459,1758139846560,-400.0,0.0002227,2]
[385941460,1758139846577,-400.0,0.0002227,2]
[385941461,1758139846588,-400.0,0.0002227,2]
[385941462,1758139846598,-400.0,0.0002227,2]
[385941463,1758139846607,-400.0,0.0002227,2]
[385941464,1758139846617,-227.2014968,0.0002227,2]
[385941465,1758139846631,-172.7985032,0.0002227,2]
[385941466,1758139846641,-400.0,0.0002227,2]
[385941467,1758139846651,-144.84821568,0.0002227,2]
[385941468,1758139846777,-255.15178432,0.0002227,2]
[385941469,1758139846787,-400.0,0.0002227,2]
[385941470,1758139846797,-416.3,0.0002227,2]
[385941471,1758139846808,-59.81141568,0.0002227,2]
[385941472,1758139846828,-340.18858432,0.0002227,2]
[385941473,1758139846837,-400.0,0.0002227,2]
[385941474,1758139846847,-400.0,0.0002227,2]
[385941475,1758139846857,-453.8,0.0002227,2]
[385941476,1758139846867,-400.0,0.0002227,2]
[385941477,1758139846876,-612.85,0.0002227,2]
[385941478,1758139846886,-400.0,0.0002227,2]
[385941479,1758139846896,-400.0,0.0002227,2]
[385941480,1758139846905,-400.0,0.0002227,2]
[385941481,1758139846915,-1557.25,0.0002227,2]
[385941482,1758139846924,-834.9,0.0002227,2]
[385941483,1758139846934,-400.0,0.0002227,2]
[385941484,1758139846944,-400.0,0.0002227,2]
[385941485,1758139846954,-400.0,0.0002227,2]
[385941486,1758139846963,-400.0,0.0002227,2]
[385941487,1758139846973,-400.0,0.0002227,2]
[385941488,1758139846983,-400.0,0.0002227,2]
[385941489,1758139846992,-488.28,0.0002227,2]
[385941490,1758139847002,-400.0,0.0002227,2]
[385941491,1758139847011,-287.15490547,0.0002227,2]
[385941492,1758139847021,-400.0,0.0002227,2]
[385941493,1758139847031,-400.0,0.0002227,2]
[385941494,1758139847040,-400.0,0.0002227,2]
[385941495,1758139847050,-400.0,0.0002227,2]
[385941496,1758139847061,-2156.02,0.0002227,2]
[385941497,1758139847070,-400.0,0.0002227,2]
[385941498,1758139847080,-400.0,0.0002227,2]
[385941499,1758139847089,-400.0,0.0002227,2]
[385941500,1758139847099,-403.43,0.0002227,2]
[385941501,1758139847109,-400.0,0.0002227,2]
[385941502,1758139847118,-440.86,0.0002227,2]
[385941503,1758139847128,-400.0,0.0002227,2]
[385941504,1758139847137,-576.24,0.0002227,2]
[385941505,1758139847147,-695.37,0.0002227,2]
[385941506,1758139847157,-400.0,0.0002227,2]
[385941507,1758139847167,-400.0,0.0002227,2]
[385941508,1758139847177,-400.0,0.0002227,2]
[385941509,1758139847187,-492.96,0.0002227,2]
[385941510,1758139847197,-400.0,0.0002227,2]
[385941511,1758139847206,-400.0,0.0002227,2]
[385941512,1758139847215,-400.0,0.0002227,2]
[385941513,1758139847225,-400.0,0.0002227,2]
[385941514,1758139847235,-400.0,0.0002227,2]
[385941515,1758139847245,-504.11,0.0002227,2]
[385941516,1758139847254,-1007.66,0.0002227,2]
[385941517,1758139847264,-400.0,0.00022271,2]
[385941518,1758139847274,-1950.13,0.00022271,2]
[385941519,1758139847284,-1000.0,0.00022271,2]
[385941520,1758139847293,-632.79,0.00022271,2]
[385941521,1758139847303,-560.58,0.00022271,2]
[385941522,1758139847312,-667.97,0.00022271,2]
[385941523,1758139847322,-408.64,0.00022271,2]
[385941524,1758139847332,-588.81,0.00022271,2]
[385941525,1758139847342,-400.0,0.00022271,2]
[385941526,1758139847352,-515.71,0.00022272,2]
[385941527,1758139847361,-878.38493529,0.00022444,2]
[385941528,1758139847371,-5405.1556528,0.00022444,2]
[385941529,1758139847381,-400.0,0.00022445,2]
[385941530,1758139847451,-185.16,0.00022534,2]
[385941531,1758139847459,-400.0,0.00022543,2]
[385941532,1758139847468,-400.0,0.00022543,2]
[385941533,1758139847476,-400.0,0.00022543,2]
[385941534,1758139847484,-400.0,0.00022543,2]
[385941535,1758139847493,-581.41,0.00022543,2]
[385941536,1758139847502,-410.42927222,0.00022543,2]
[385941537,1758139847510,-400.0,0.00022543,2]
[385941538,1758139847520,-400.0,0.00022543,2]
[385941539,1758139847529,-408.29995569,0.00022543,2]
[385941540,1758139847539,-400.0,0.00022543,2]
[385941541,1758139847550,-400.0,0.00022543,2]
[385941542,1758139847560,-400.0,0.00022543,2]
[385941543,1758139847569,-400.0,0.00022543,2]
[385941544,1758139847580,-400.0,0.00022543,2]
[385941545,1758139847589,-400.0,0.00022543,2]
[385941546,1758139847599,-400.0,0.00022543,2]
[385941547,1758139847608,-414.9134622,0.00022543,2]
[385941548,1758139847617,-400.0,0.00022543,2]
[385941549,1758139847627,-400.0,0.00022543,2]
[385941550,1758139847636,-400.0,0.00022543,2]
[385941551,1758139847646,-400.0,0.00022543,2]
[385941552,1758139847655,-400.0,0.00022543,2]
[385941553,1758139847665,-400.0,0.00022543,2]
[385941554,1758139847675,-400.0,0.00022543,2]
[385941555,1758139847685,-400.0,0.00022543,2]
[385941556,1758139847698,-400.0,0.00022543,2]
[385941557,1758139847707,-400.0,0.00022543,2]
[385941558,1758139847715,-518.72647945,0.00022543,2]
[385941559,1758139847724,-400.0,0.00022543,2]
[385941560,1758139847733,-400.0,0.00022543,2]
[385941561,1758139847742,-400.0,0.00022543,2]
[385941562,1758139847752,-400.0,0.00022543,2]
[385941563,1758139847760,-400.0,0.00022543,2]
[385941564,1758139847770,-400.0,0.00022543,2]
[385941565,1758139847779,-400.0,0.00022543,2]
[385941566,1758139847788,-400.0,0.00022543,2]
[385941567,1758139847796,-400.0,0.00022543,2]
[385941568,1758139847806,-400.0,0.00022543,2]
[385941569,1758139847815,-408.92232198,0.00022543,2]
[385941570,1758139847824,-400.0,0.00022543,2]
[385941571,1758139847834,-400.0,0.00022543,2]
[385941572,1758139847843,-631.26,0.00022543,2]
[385941573,1758139847852,-400.0,0.00022543,2]
[385941574,1758139847862,-400.0,0.00022543,2]
[385941575,1758139847872,-400.0,0.00022543,2]
[385941576,1758139847881,-400.0,0.00022543,2]
[385941577,1758139847890,-400.0,0.00022543,2]
[385941578,1758139847900,-400.0,0.00022543,2]
[385941579,1758139847909,-400.0,0.00022543,2]
[385941580,1758139847919,-400.0,0.00022543,2]
[385941581,1758139847928,-420.72692129,0.00022543,2]
[385941582,1758139847937,-400.0,0.00022543,2]
[385941583,1758139847947,-400.0,0.00022543,2]
[385941584,1758139847956,-400.0,0.00022543,2]
[385941585,1758139847966,-400.0,0.00022543,2]
[385941586,1758139847975,-400.0,0.00022543,2]
[385941587,1758139847984,-400.0,0.00022543,2]
[385941588,1758139847993,-400.0,0.00022543,2]
[385941589,1758139848002,-400.0,0.00022543,2]
[385941590,1758139848012,-400.0,0.00022543,2]
[385941591,1758139848021,-400.0,0.00022543,2]
[385941592,1758139848031,-400.0,0.00022543,2]
[385941593,1758139848041,-400.0,0.00022543,2]
[385941594,1758139848051,-400.0,0.00022543,2]
[385941595,1758139848061,-400.0,0.00022543,2]
[385941596,1758139848070,-400.0,0.00022543,2]
[385941597,1758139848080,-400.0,0.00022543,2]
[385941598,1758139848089,-400.0,0.00022543,2]
[385941599,1758139848099,-400.0,0.00022543,2]
[385941600,1758139848109,-400.0,0.00022543,2]
[385941601,1758139848118,-400.0,0.00022543,2]
[385941602,1758139848129,-400.0,0.00022543,2]
[385941603,1758139848138,-400.0,0.00022543,2]
[385941604,1758139848148,-400.0,0.00022543,2]
[385941605,1758139848157,-400.0,0.00022543,2]
[385941606,1758139848166,-400.0,0.00022543,2]
[385941607,1758139848176,-400.0,0.00022543,2]
[385941608,1758139848186,-400.0,0.00022543,2]
[385941609,1758139848195,-500.0,0.00022543,2]
[385941610,1758139848204,-212.66431811,0.00022543,2]
[385941611,1758139848214,-500.0,0.00022543,2]
[385941612,1758139848223,-516.5884393,0.00022543,2]
[385941613,1758139848232,-403.05660743,0.00022543,2]
[385941614,1758139848242,-500.0,0.00022543,2]
[385941615,1758139848251,-500.0,0.00022543,2]
[385941616,1758139848261,-500.0,0.00022543,2]
[385941617,1758139848271,-400.0,0.00022544,2]
[385941618,1758139848280,-216.641644,0.00022544,2]
[385941619,1758139848290,-400.0,0.00022544,2]
[385941620,1758139848299,-400.0,0.00022544,2]
[385941621,1758139848310,-400.0,0.00022544,2]
[385941622,1758139848319,-400.0,0.00022544,2]
[385941623,1758139848329,-400.0,0.00022544,2]
[385941624,1758139848338,-400.0,0.00022544,2]
[385941625,1758139848347,-400.0,0.00022544,2]
[385941626,1758139848356,-400.0,0.00022544,2]
[385941627,1758139848365,-400.0,0.00022544,2]
[385941628,1758139848374,-400.0,0.00022544,2]
[385941629,1758139848384,-400.0,0.00022544,2]
[385941630,1758139848394,-400.0,0.00022544,2]
[385941631,1758139848403,-400.0,0.00022544,2]
[385941632,1758139848412,-400.0,0.00022544,2]
[385941633,1758139848422,-429.43905001,0.00022544,2]
[385941634,1758139848431,-400.0,0.00022544,2]
[385941635,1758139848440,-400.0,0.00022544,2]
[385941636,1758139848449,-400.0,0.00022544,2]
[385941637,1758139848458,-400.0,0.00022544,2]
[385941638,1758139848468,-400.0,0.00022544,2]
[385941639,1758139848478,-500.0,0.00022544,2]
[385941640,1758139848487,-400.0,0.00022544,2]
[385941641,1758139848497,-400.0,0.00022544,2]
[385941642,1758139848506,-400.0,0.00022544,2]
[385941643,1758139848515,-400.0,0.00022544,2]
[385941644,1758139848524,-365.12302093,0.00022544,2]
[385941645,1758139848815,-34.87697907,0.00022544,2]
[385941646,1758139848826,-400.0,0.00022544,2]
[385941647,1758139848836,-400.0,0.00022544,2]
[385941648,1758139848846,-400.0,0.00022544,2]
[385941649,1758139848857,-444.85,0.00022544,2]
[385941650,1758139848866,-400.0,0.00022544,2]
[385941651,1758139848875,-400.0,0.00022544,2]
[385941652,1758139848885,-276.88076346,0.00022544,2]
[385941653,1758139848895,-454.06,0.00022544,2]
[385941654,1758139848904,-26.04337604,0.00022544,2]
[385941655,1758139848917,-373.95662396,0.00022544,2]
[385941656,1758139848927,-79.87327009,0.00022544,2]
[385941657,1758139848938,-320.12672991,0.00022544,2]
[385941658,1758139848948,-400.0,0.00022544,2]
[385941659,1758139848957,-400.96640645,0.00022544,2]
[385941660,1758139848967,-400.0,0.00022544,2]
[385941661,1758139848976,-400.0,0.00022544,2]
[385941662,1758139848986,-400.0,0.00022544,2]
[385941663,1758139848996,-400.0,0.00022544,2]
[385941664,1758139849005,-482.36891454,0.00022544,2]
[385941665,1758139849014,-400.0,0.00022544,2]
[385941666,1758139849023,-400.0,0.00022544,2]
[385941667,1758139849033,-400.0,0.00022544,2]
[385941668,1758139849043,-400.0,0.00022544,2]
[385941669,1758139849053,-400.0,0.00022544,2]
[385941670,1758139849062,-400.0,0.00022544,2]
[385941671,1758139849072,-400.0,0.00022544,2]
[385941672,1758139849081,-400.0,0.00022544,2]
[385941673,1758139849092,-400.0,0.00022544,2]
[385941674,1758139849101,-400.0,0.00022544,2]
[385941675,1758139849110,-400.0,0.00022544,2]
[385941676,1758139849120,-409.18697314,0.00022544,2]
[385941677,1758139849129,-269.71220646,0.00022544,2]
[385941678,1758139849142,-130.28779354,0.00022544,2]
[385941679,1758139849151,-340.9361031,0.00022544,2]
[385941680,1758139849162,-59.0638969,0.00022544,2]
[385941681,1758139849172,-395.7833907,0.00022544,2]
[385941682,1758139849181,-97.1474814,0.00022544,2]
[385941687,1758140006023,500.0,0.00030119,120]
[385941699,1758140479156,160.54,0.00010633,2]
[385941700,1758140479356,160.54,0.00015949,2]
[385941738,1758140708128,436955.72483565,0.0002,2]
[385941770,1758141031740,-151.0,0.00020265,2]
[385941771,1758141031750,-300.0,0.00020266,2]
[385941772,1758141031760,-1200.0,0.00020266,2]
[385941773,1758141031771,-300.0,0.00020266,2]
[385941774,1758141031781,-300.0,0.00020266,2]
[385941775,1758141031791,-413.0,0.00020266,2]
[385941776,1758141031801,-500.0,0.00020266,2]
[385941777,1758141031810,-135.81616644,0.00020266,2]
[385941778,1758141031850,-59.18383356,0.00020266,2]
[385941779,1758141031862,-226.88961192,0.00020267,2]
[385941780,1758141031872,-500.0,0.00020267,2]
[385941781,1758141031882,-500.0,0.00020267,2]
[385941782,1758141031892,-155.50870974,0.00020267,2]
[385941783,1758141031913,-344.49129026,0.00020267,2]
[385941784,1758141031923,-500.0,0.00020267,2]
[385941785,1758141031932,-500.0,0.00020267,2]
[385941786,1758141031942,-500.0,0.00020267,2]
[385941787,1758141031952,-500.0,0.00020267,2]
[385941788,1758141031963,-500.0,0.00020267,2]
[385941789,1758141031973,-421.19476615,0.00020267,2]
[385941790,1758141031983,-500.0,0.00020267,2]
[385941791,1758141031992,-500.0,0.00020267,2]
[385941792,1758141032002,-500.0,0.00020267,2]
[385941793,1758141032012,-500.0,0.00020267,2]
[385941794,1758141032022,-500.0,0.00020267,2]
[385941795,1758141032034,-500.0,0.00020267,2]
[385941796,1758141032044,-500.0,0.00020267,2]
[385941797,1758141032053,-500.0,0.00020267,2]
[385941798,1758141032063,-500.0,0.00020267,2]
[385941799,1758141032073,-500.0,0.00020267,2]
[385941800,1758141032082,-500.0,0.00020267,2]
[385941801,1758141032092,-500.0,0.00020267,2]
[385941802,1758141032104,-500.0,0.00020267,2]
[385941803,1758141032114,-500.0,0.00020267,2]
[385941804,1758141032124,-150.0,0.00020268,2]
[385941805,1758141032134,-150.0,0.00020268,2]
[385941806,1758141032143,-150.0,0.00020268,2]
[385941807,1758141032154,-150.0,0.00020268,2]
[385941808,1758141032163,-212600.834513,0.00020268,2]
[385941809,1758141032173,-195.0,0.00020457,2]
[385941810,1758141032183,-195.0,0.00020584,2]
[385941811,1758141032192,-681.9,0.0002088,2]
[385941812,1758141032201,-253.0,0.000209,2]
[385941813,1758141032211,-871.77,0.00020934,2]
[385941814,1758141032221,-164.37,0.00020982,2]
[385941815,1758141032230,-250.0,0.00020983,2]
[385941816,1758141032240,-2398.08,0.00021106,2]
[385941817,1758141032249,-1.19655111,0.00021144,2]
[385941818,1758141036950,-837.45407559,0.00021105,2]
[385941819,1758141036960,-250.0,0.00021254,2]
[385941820,1758141036970,-1200.0,0.00021263,2]
[385941821,1758141036980,-160.54,0.00021265,2]
[385941822,1758141036990,-10261.15,0.00021265,2]
[385941823,1758141037000,-215.02,0.00021276,2]
[385941824,1758141037010,-169.4,0.00021396,2]
[385941825,1758141037020,-837.45407559,0.00021518,2]
[385941826,1758141037035,-300.0,0.000217,7]
[385941827,1758141037045,-837.45407559,0.0002172,2]
[385941828,1758141037056,-600.0,0.000218,7]
[385941829,1758141037066,-900.0,0.000219,7]
[385941830,1758141037076,-400.0,0.00021917,2]
[385941831,1758141037086,-400.0,0.00021917,2]
[385941832,1758141037096,-400.0,0.00021917,2]
[385941833,1758141037107,-400.0,0.00021917,2]
[385941835,1758141037116,-400.0,0.00021917,2]
[385941837,1758141037127,-638.16,0.0002199,2]
[385941839,1758141037136,-6715.16742542,0.00022,2]
[385941841,1758141037148,-14274.81934604,0.00022,2]
[385941843,1758141037158,-420.0,0.00022062,2]
[385941845,1758141037168,-837.45407559,0.00022103,2]
[385941847,1758141037178,-167.79669956,0.00022157,2]
[385941849,1758141037188,-200.0,0.00022157,2]
[385941851,1758141037198,-1680.0,0.00022168,2]
[385941853,1758141037208,-480.06,0.00022169,2]
[385941855,1758141037218,-400.0,0.00022169,2]
[385941857,1758141037228,-422.92,0.00022169,2]
[385941859,1758141037238,-400.0,0.00022169,2]
[385941862,1758141037248,-400.0,0.00022169,2]
[385941864,1758141037258,-155.28749615,0.00022169,2]
[385941866,1758141037268,-400.0,0.00022169,2]
[385941868,1758141037277,-400.0,0.00022169,2]
[385941871,1758141037287,-400.0,0.00022169,2]
[385941874,1758141037297,-400.0,0.00022169,2]
[385941877,1758141037306,-445.18,0.00022169,2]
[385941880,1758141037316,-399.77605006,0.00022169,2]
[385941883,1758141037325,-400.0,0.00022169,2]
[385941887,1758141037335,-408.88,0.00022169,2]
[385941890,1758141037344,-400.0,0.00022169,2]
[385941893,1758141037354,-730.12,0.00022169,2]
[385941896,1758141037363,-400.0,0.00022169,2]
[385941899,1758141037374,-400.0,0.00022169,2]
[385941902,1758141037383,-400.0,0.00022169,2]
[385941905,1758141037393,-400.0,0.00022169,2]
[385941908,1758141037403,-400.0,0.00022169,2]
[385941911,1758141037413,-400.0,0.00022169,2]
[385941914,1758141037423,-400.0,0.00022169,2]
[385941917,1758141037433,-400.0,0.00022169,2]
[385941921,1758141037442,-468.69,0.00022169,2]
[385941923,1758141037451,-400.0,0.00022169,2]
[385941926,1758141037461,-400.0,0.00022169,2]
[385941927,1758141037470,-400.0,0.00022169,2]
[385941930,1758141037480,-400.0,0.00022169,2]
[385941932,1758141037489,-400.0,0.00022169,2]
[385941934,1758141037498,-400.0,0.00022169,2]
[385941936,1758141037508,-400.0,0.00022169,2]
[385941938,1758141037517,-400.0,0.00022169,2]
[385941940,1758141037526,-400.0,0.00022169,2]
[385941942,1758141037535,-510.48,0.00022169,2]
[385941944,1758141037545,-400.0,0.00022169,2]
[385941946,1758141037554,-400.0,0.00022169,2]
[385941948,1758141037563,-12494.27955026,0.0002217,2]
[385941950,1758141037572,-794.31194953,0.0002217,2]
[385941952,1758141037581,-8762.72412024,0.0002217,2]
[385941954,1758141037591,-2614.3240353,0.00022171,2]
[385941956,1758141037602,-162.4017061,0.00022171,2]
[385941958,1758141037612,-681.35751819,0.00022172,2]
[385941960,1758141037622,-400.0,0.00022191,2]
[385941962,1758141037631,-450.83,0.00022191,2]
[385942004,1758141038006,-400.0,0.00022191,2]
[385942006,1758141038016,-377.47,0.00022242,2]
[385942008,1758141038027,-377.47,0.00022243,2]
[385942010,1758141038039,-151.22,0.0002225,2]
[385942012,1758141038049,-191.47412992,0.00022261,2]
[385942014,1758141038059,-208.14299406,0.00022268,2]
[385942016,1758141038069,-150.0,0.00022269,2]
[385942018,1758141038078,-150.0,0.00022269,2]
[385942020,1758141038088,-150.0,0.00022269,2]
[385942022,1758141038098,-150.0,0.00022269,2]
[385942024,1758141038112,-500.0,0.00022269,2]
[385942026,1758141038122,-332.56427,0.0002227,2]
[385942028,1758141038132,-473.480559,0.0002227,2]
[385942030,1758141038142,-499.499514,0.0002227,2]
[385942032,1758141038152,-412.80368181,0.0002227,2]
[385942034,1758141038162,-400.0,0.0002227,2]
[385942036,1758141038171,-400.0,0.0002227,2]
[385942039,1758141038181,-400.0,0.0002227,2]
[385942041,1758141038191,-400.0,0.0002227,2]
[385942043,1758141038200,-400.0,0.0002227,2]
[385942045,1758141038209,-402.61523473,0.0002227,2]